[Event "*** Titled Tuesday Blitz AM"]
[Site "Chess.com"]
[Date "2020.01.07"]
[Round "3"]
[White "gmasterkiller"]
[Black "Indianlad"]
[Result "0-1"]
[WhiteElo "2614"]
[BlackElo "2935"]
[TimeControl "180+2"]
[EndTime "9:37:08 PST"]
[Termination "Indianlad won by checkmate"]

1. e4 {[%clk 0:03:01.9]} 1... c6 {[%clk 0:02:59.9]} 2. d4 {[%clk 0:03:01.4]}
2... d5 {[%clk 0:02:57.5]} 3. Nc3 {[%clk 0:03:02.7]} 3... dxe4 {[%clk
0:02:57.3]} 4. Nxe4 {[%clk 0:03:04.2]} 4... h6 {[%clk 0:02:58.2]} 5. Nf3 {[%clk
0:02:55.6]} 5... Bf5 {[%clk 0:02:58.9]} 6. Ng3 {[%clk 0:02:52.6]} 6... Bh7
{[%clk 0:02:59.5]} 7. Bd3 {[%clk 0:02:53]} 7... Bxd3 {[%clk 0:03:00.9]} 8. Qxd3
{[%clk 0:02:52.9]} 8... Nf6 {[%clk 0:03:02.6]} 9. Bd2 {[%clk 0:02:48.2]} 9... e6
{[%clk 0:03:04.2]} 10. O-O-O {[%clk 0:02:48.8]} 10... Be7 {[%clk 0:03:04]} 11.
Ne4 {[%clk 0:02:49.8]} 11... Nxe4 {[%clk 0:03:04.7]} 12. Qxe4 {[%clk 0:02:51.7]}
12... Qd5 {[%clk 0:03:06.1]} 13. Qxd5 {[%clk 0:02:52.3]} 13... cxd5 {[%clk
0:03:08]} 14. Ne5 {[%clk 0:02:48.4]} 14... Nc6 {[%clk 0:02:51.4]} 15. Bf4 {[%clk
0:02:44.6]} 15... Nxe5 {[%clk 0:02:49.7]} 16. Bxe5 {[%clk 0:02:45.4]} 16... f6
{[%clk 0:02:51.3]} 17. Bg3 {[%clk 0:02:42.5]} 17... Kd7 {[%clk 0:02:52.2]} 18.
Rhe1 {[%clk 0:02:43.5]} 18... Rac8 {[%clk 0:02:53.6]} 19. Re3 {[%clk 0:02:43.1]}
19... Rc6 {[%clk 0:02:55.2]} 20. Rde1 {[%clk 0:02:42.8]} 20... Rhc8 {[%clk
0:02:56.7]} 21. R1e2 {[%clk 0:02:43.4]} 21... b5 {[%clk 0:02:57]} 22. f4 {[%clk
0:02:35.8]} 22... f5 {[%clk 0:02:57.2]} 23. a3 {[%clk 0:02:16.5]} 23... a5
{[%clk 0:02:57.9]} 24. Kb1 {[%clk 0:02:12]} 24... Bf6 {[%clk 0:02:51.4]} 25. Rd2
{[%clk 0:02:01.9]} 25... Rc4 {[%clk 0:02:50.7]} 26. Red3 {[%clk 0:02:01.6]}
26... g5 {[%clk 0:02:45.2]} 27. b3 {[%clk 0:01:25.9]} 27... Rc3 {[%clk
0:02:33.2]} 28. Kb2 {[%clk 0:01:23.9]} 28... b4 {[%clk 0:02:09.6]} 29. axb4
{[%clk 0:01:23.9]} 29... axb4 {[%clk 0:02:11.5]} 30. fxg5 {[%clk 0:01:12.9]}
30... hxg5 {[%clk 0:02:13.4]} 31. Be1 {[%clk 0:01:12.2]} 31... f4 {[%clk
0:01:46.3]} 32. h3 {[%clk 0:01:09.8]} 32... Ke8 {[%clk 0:01:27.5]} 33. Kb1
{[%clk 0:01:08.2]} 33... R3c6 {[%clk 0:01:08.9]} 34. Re2 {[%clk 0:01:03.2]}
34... Be7 {[%clk 0:01:09]} 35. g3 {[%clk 0:00:38.9]} 35... Ra8 {[%clk
0:01:10.1]} 36. Kc1 {[%clk 0:00:26.7]} 36... Ra1+ {[%clk 0:00:59.8]} 37. Kd2
{[%clk 0:00:25.8]} 37... f3 {[%clk 0:00:50.4]} 38. Rxf3 {[%clk 0:00:14.4]} 38...
g4 {[%clk 0:00:51.9]} 39. hxg4 {[%clk 0:00:15.5]} 39... Bg5+ {[%clk 0:00:52.9]}
40. Rf4 {[%clk 0:00:16.5]} 40... Kd7 {[%clk 0:00:46.5]} 41. Kd3 {[%clk
0:00:15.9]} 41... Rd1+ {[%clk 0:00:46.1]} 42. Bd2 {[%clk 0:00:15.3]} 42... Rc3#
{[%clk 0:00:47]} 0-1

[Event "*** Titled Tuesday Blitz AM"]
[Site "Chess.com"]
[Date "2020.01.07"]
[Round "3"]
[White "boo786"]
[Black "kleinebeer98"]
[Result "0-1"]
[WhiteElo "2421"]
[BlackElo "2677"]
[TimeControl "180+2"]
[EndTime "9:37:09 PST"]
[Termination "kleinebeer98 won by resignation"]

1. Nf3 {[%clk 0:03:01.9]} 1... Nf6 {[%clk 0:02:58.9]} 2. c4 {[%clk 0:03:02]}
2... c5 {[%clk 0:02:57.2]} 3. Nc3 {[%clk 0:03:01.6]} 3... Nc6 {[%clk 0:02:58.4]}
4. d4 {[%clk 0:03:02]} 4... cxd4 {[%clk 0:02:54.3]} 5. Nxd4 {[%clk 0:03:02.8]}
5... e6 {[%clk 0:02:55.5]} 6. e4 {[%clk 0:03:00.7]} 6... Qc7 {[%clk 0:02:50.3]}
7. Be2 {[%clk 0:02:57]} 7... a6 {[%clk 0:02:48.7]} 8. O-O {[%clk 0:02:56.4]}
8... h5 {[%clk 0:02:47.4]} 9. Bg5 {[%clk 0:02:36.3]} 9... Ng4 {[%clk 0:02:41.5]}
10. Nf3 {[%clk 0:02:34.3]} 10... Bc5 {[%clk 0:02:33.5]} 11. Qd2 {[%clk
0:02:26.2]} 11... Nd4 {[%clk 0:02:26.6]} 12. Bf4 {[%clk 0:02:26.3]} 12... Nxe2+
{[%clk 0:02:24.4]} 13. Nxe2 {[%clk 0:02:22.5]} 13... e5 {[%clk 0:02:21.4]} 14.
Bg3 {[%clk 0:02:20.8]} 14... d6 {[%clk 0:02:19.7]} 15. h3 {[%clk 0:02:13]} 15...
Nf6 {[%clk 0:02:20.5]} 16. Nc3 {[%clk 0:02:11.9]} 16... Be6 {[%clk 0:02:13.6]}
17. b3 {[%clk 0:02:09]} 17... O-O-O {[%clk 0:02:01.1]} 18. Bh4 {[%clk
0:02:01.3]} 18... Kb8 {[%clk 0:01:54.8]} 19. Rac1 {[%clk 0:01:54.6]} 19... Qc6
{[%clk 0:01:50.5]} 20. Rfe1 {[%clk 0:01:53.2]} 20... Rhg8 {[%clk 0:01:45.5]} 21.
Nd5 {[%clk 0:01:50.8]} 21... Bxd5 {[%clk 0:01:33.2]} 22. cxd5 {[%clk 0:01:50.4]}
22... Qb6 {[%clk 0:01:34.4]} 23. Ng5 {[%clk 0:01:44.7]} 23... Rd7 {[%clk
0:01:32.3]} 24. Rc4 {[%clk 0:01:33.4]} 24... Rc8 {[%clk 0:01:29.9]} 25. Rec1
{[%clk 0:01:30.9]} 25... Rdc7 {[%clk 0:01:30]} 26. Qd3 {[%clk 0:01:17.3]} 26...
a5 {[%clk 0:01:23.5]} 27. Nf3 {[%clk 0:01:11]} 27... Ka7 {[%clk 0:01:15.3]} 28.
R1c2 {[%clk 0:01:10.2]} 28... Nd7 {[%clk 0:01:13.2]} 29. Nd2 {[%clk 0:00:55.1]}
29... f6 {[%clk 0:01:09.8]} 30. R4c3 {[%clk 0:00:44.3]} 30... g5 {[%clk
0:01:06.5]} 31. Nc4 {[%clk 0:00:41.6]} 31... Qa6 {[%clk 0:01:06.9]} 32. Bg3
{[%clk 0:00:41.4]} 32... h4 {[%clk 0:01:07.6]} 33. Bh2 {[%clk 0:00:41.1]} 33...
Bb4 {[%clk 0:01:03.8]} 34. a4 {[%clk 0:00:32.4]} 34... Nc5 {[%clk 0:00:54.9]}
35. Qe3 {[%clk 0:00:27.5]} 35... Bxc3 {[%clk 0:00:56]} 36. Rxc3 {[%clk
0:00:27.4]} 36... Kb8 {[%clk 0:00:57.1]} 37. Na3 {[%clk 0:00:20.8]} 37... Nxb3
{[%clk 0:00:56.3]} 38. Rxc7 {[%clk 0:00:15.6]} 38... Rxc7 {[%clk 0:00:58.2]} 39.
Kh1 {[%clk 0:00:15.4]} 39... Rc1+ {[%clk 0:00:57.8]} 40. Bg1 {[%clk 0:00:15.9]}
40... Qf1 {[%clk 0:00:59.1]} 41. f3 {[%clk 0:00:16.8]} 41... Nd4 {[%clk
0:00:59.4]} 42. Nb5 {[%clk 0:00:15.9]} 42... Nxb5 {[%clk 0:00:56.7]} 43. axb5
{[%clk 0:00:15.5]} 43... Qxg1+ {[%clk 0:00:57.4]} 44. Qxg1 {[%clk 0:00:15.3]}
44... Rxg1+ {[%clk 0:00:59.3]} 45. Kxg1 {[%clk 0:00:15.2]} 45... a4 {[%clk
0:01:01.2]} 0-1

[Event "*** Titled Tuesday Blitz AM"]
[Site "Chess.com"]
[Date "2020.01.07"]
[Round "3"]
[White "platy3"]
[Black "AdrianPetrisor1992"]
[Result "1-0"]
[WhiteElo "2890"]
[BlackElo "2611"]
[TimeControl "180+2"]
[EndTime "9:37:10 PST"]
[Termination "platy3 won by resignation"]

1. e4 {[%clk 0:03:01.9]} 1... e5 {[%clk 0:03:00.6]} 2. Nf3 {[%clk 0:03:00.6]}
2... Nc6 {[%clk 0:03:00.8]} 3. Bc4 {[%clk 0:03:02.1]} 3... Bc5 {[%clk
0:03:01.1]} 4. c3 {[%clk 0:03:02.3]} 4... Nf6 {[%clk 0:03:02.5]} 5. d3 {[%clk
0:03:03.9]} 5... O-O {[%clk 0:03:03.1]} 6. O-O {[%clk 0:03:05.4]} 6... d6 {[%clk
0:02:54.5]} 7. Nbd2 {[%clk 0:03:06.6]} 7... a5 {[%clk 0:02:48.9]} 8. h3 {[%clk
0:03:03.6]} 8... Be6 {[%clk 0:02:47.3]} 9. Bb5 {[%clk 0:02:58.8]} 9... Na7
{[%clk 0:02:38.9]} 10. Ba4 {[%clk 0:02:53.7]} 10... b5 {[%clk 0:02:37]} 11. Bc2
{[%clk 0:02:48.2]} 11... Nc6 {[%clk 0:02:28.6]} 12. a4 {[%clk 0:02:47.2]} 12...
b4 {[%clk 0:02:26.2]} 13. Nb3 {[%clk 0:02:47.7]} 13... Bb6 {[%clk 0:02:26.1]}
14. Re1 {[%clk 0:02:30.5]} 14... d5 {[%clk 0:02:12.4]} 15. Bg5 {[%clk
0:02:28.5]} 15... h6 {[%clk 0:02:08]} 16. Bh4 {[%clk 0:02:25.6]} 16... g5 {[%clk
0:02:00.3]} 17. Bg3 {[%clk 0:02:18.2]} 17... Nh5 {[%clk 0:01:07.1]} 18. Nxe5
{[%clk 0:02:19.2]} 18... Nxg3 {[%clk 0:01:02.8]} 19. Nxc6 {[%clk 0:02:20.3]}
19... Qf6 {[%clk 0:01:00.3]} 20. Nbd4 {[%clk 0:02:09.7]} 20... Bd7 {[%clk
0:00:47.9]} 21. exd5 {[%clk 0:02:01.3]} 21... Bxc6 {[%clk 0:00:39.9]} 22. dxc6
{[%clk 0:02:01.4]} 22... Bxd4 {[%clk 0:00:36.5]} 23. cxd4 {[%clk 0:02:02.8]}
23... Qxd4 {[%clk 0:00:38.3]} 24. Rb1 {[%clk 0:01:25.1]} 24... Rfe8 {[%clk
0:00:29.5]} 25. Qg4 {[%clk 0:01:03.8]} 25... Qxb2 {[%clk 0:00:16.4]} 26. Qxg3
{[%clk 0:00:46.9]} 26... Qxc2 {[%clk 0:00:15.9]} 27. Rec1 {[%clk 0:00:32.8]}
27... Qxa4 {[%clk 0:00:15.9]} 28. Qxc7 {[%clk 0:00:34.3]} 28... Rac8 {[%clk
0:00:14.3]} 29. Qd7 {[%clk 0:00:28.6]} 29... b3 {[%clk 0:00:14]} 30. Qd5 {[%clk
0:00:24.4]} 30... Re6 {[%clk 0:00:12.3]} 31. c7 {[%clk 0:00:23]} 31... Qe8
{[%clk 0:00:09]} 32. Rxb3 {[%clk 0:00:20.9]} 32... Qe7 {[%clk 0:00:08.9]} 33.
Rb8 {[%clk 0:00:20.1]} 33... Re1+ {[%clk 0:00:08.7]} 34. Rxe1 {[%clk 0:00:18.2]}
34... Qxe1+ {[%clk 0:00:10.6]} 35. Kh2 {[%clk 0:00:19.7]} 35... Qe8 {[%clk
0:00:10.3]} 36. Rxc8 {[%clk 0:00:20.2]} 36... Qxc8 {[%clk 0:00:12.2]} 37. Qd8+
{[%clk 0:00:21.5]} 1-0

[Event "*** Titled Tuesday Blitz AM"]
[Site "Chess.com"]
[Date "2020.01.07"]
[Round "3"]
[White "Quiet_Desperation"]
[Black "Mikasinski"]
[Result "0-1"]
[WhiteElo "2424"]
[BlackElo "2307"]
[TimeControl "180+2"]
[EndTime "9:37:11 PST"]
[Termination "Mikasinski won by resignation"]

1. e4 {[%clk 0:03:01.9]} 1... e6 {[%clk 0:03:00.9]} 2. d4 {[%clk 0:02:59.2]}
2... d5 {[%clk 0:03:01.4]} 3. Nc3 {[%clk 0:02:59]} 3... Bb4 {[%clk 0:03:01.5]}
4. e5 {[%clk 0:02:59.3]} 4... Ne7 {[%clk 0:03:00.3]} 5. Bd2 {[%clk 0:03:00.5]}
5... c5 {[%clk 0:02:51.6]} 6. dxc5 {[%clk 0:03:00.7]} 6... Bxc5 {[%clk
0:02:44.9]} 7. Nf3 {[%clk 0:03:01.7]} 7... Nbc6 {[%clk 0:02:43.5]} 8. Bd3 {[%clk
0:03:02.2]} 8... a6 {[%clk 0:02:36.5]} 9. O-O {[%clk 0:02:56.5]} 9... Ng6 {[%clk
0:02:31.8]} 10. Qe2 {[%clk 0:02:50.8]} 10... Nb4 {[%clk 0:02:29.2]} 11. a3
{[%clk 0:02:45.1]} 11... Nxd3 {[%clk 0:02:28.7]} 12. cxd3 {[%clk 0:02:41.4]}
12... d4 {[%clk 0:02:17.8]} 13. Ne4 {[%clk 0:02:41.1]} 13... Be7 {[%clk
0:02:17.2]} 14. Rfe1 {[%clk 0:02:12]} 14... Qd5 {[%clk 0:02:14.8]} 15. Ng3
{[%clk 0:02:02.8]} 15... O-O {[%clk 0:02:11.3]} 16. Rac1 {[%clk 0:01:52.3]}
16... Rd8 {[%clk 0:02:01]} 17. Rc4 {[%clk 0:01:50.7]} 17... Bc5 {[%clk
0:01:56.8]} 18. Ng5 {[%clk 0:01:48.3]} 18... b5 {[%clk 0:01:41.4]} 19. Rcc1
{[%clk 0:01:32.5]} 19... h6 {[%clk 0:01:34.1]} 20. N5e4 {[%clk 0:01:27.4]} 20...
Be7 {[%clk 0:01:33.4]} 21. Bxh6 {[%clk 0:01:27.5]} 21... gxh6 {[%clk 0:01:14.6]}
22. Qh5 {[%clk 0:01:26.6]} 22... Qxe5 {[%clk 0:01:10.8]} 23. Qxh6 {[%clk
0:01:27.5]} 23... Qg7 {[%clk 0:01:10.5]} 24. Qd2 {[%clk 0:01:24.4]} 24... f5
{[%clk 0:01:03.4]} 25. Nh5 {[%clk 0:01:24]} 25... Qh8 {[%clk 0:01:02]} 26. Nf4
{[%clk 0:01:18.4]} 26... Nxf4 {[%clk 0:00:39.7]} 27. Qxf4 {[%clk 0:01:18.7]}
27... fxe4 {[%clk 0:00:33.3]} 28. Rc7 {[%clk 0:01:10.6]} 28... Qf6 {[%clk
0:00:26.4]} 29. Qg4+ {[%clk 0:00:58.5]} 29... Kf8 {[%clk 0:00:16.8]} 30. Rxe4
{[%clk 0:00:46.9]} 30... e5 {[%clk 0:00:17.9]} 31. Qh5 {[%clk 0:00:37.8]} 31...
Bf5 {[%clk 0:00:16.3]} 32. Re1 {[%clk 0:00:21.8]} 32... Rdc8 {[%clk 0:00:13.2]}
33. Rcc1 {[%clk 0:00:10.2]} 33... Rxc1 {[%clk 0:00:12.6]} 34. Rxc1 {[%clk
0:00:10.7]} 34... Rc8 {[%clk 0:00:13.6]} 35. Rxc8+ {[%clk 0:00:11.8]} 0-1

[Event "*** Titled Tuesday Blitz AM"]
[Site "Chess.com"]
[Date "2020.01.07"]
[Round "3"]
[White "sergeikim"]
[Black "PaulfromSPb"]
[Result "1-0"]
[WhiteElo "2447"]
[BlackElo "2670"]
[TimeControl "180+2"]
[EndTime "9:37:17 PST"]
[Termination "sergeikim won on time"]

1. d4 {[%clk 0:03:01.9]} 1... Nf6 {[%clk 0:02:29.4]} 2. c4 {[%clk 0:03:01.7]}
2... e6 {[%clk 0:02:28.4]} 3. Nc3 {[%clk 0:03:02.2]} 3... Bb4 {[%clk 0:02:28.8]}
4. Qc2 {[%clk 0:03:03]} 4... O-O {[%clk 0:02:29.6]} 5. a3 {[%clk 0:03:03.8]}
5... Bxc3+ {[%clk 0:02:30.5]} 6. Qxc3 {[%clk 0:03:04.8]} 6... b6 {[%clk
0:02:31.9]} 7. Nf3 {[%clk 0:03:04.8]} 7... Bb7 {[%clk 0:02:33]} 8. g3 {[%clk
0:03:05.1]} 8... c5 {[%clk 0:02:30.1]} 9. dxc5 {[%clk 0:03:04.5]} 9... bxc5
{[%clk 0:02:30.9]} 10. Bg2 {[%clk 0:03:05.1]} 10... d5 {[%clk 0:02:31.5]} 11.
cxd5 {[%clk 0:03:04.5]} 11... Nxd5 {[%clk 0:02:30.8]} 12. Qxc5 {[%clk
0:03:03.8]} 12... Nd7 {[%clk 0:02:31.6]} 13. Qd4 {[%clk 0:03:03.8]} 13... Qa5+
{[%clk 0:02:27.8]} 14. b4 {[%clk 0:03:02.5]} 14... Qb5 {[%clk 0:02:22.7]} 15.
Bb2 {[%clk 0:02:59.5]} 15... f6 {[%clk 0:02:21]} 16. O-O {[%clk 0:02:55]} 16...
Qxe2 {[%clk 0:02:20.9]} 17. Rfe1 {[%clk 0:02:55.1]} 17... Qa6 {[%clk 0:02:21.5]}
18. b5 {[%clk 0:02:33.1]} 18... Qxb5 {[%clk 0:02:19.1]} 19. Rxe6 {[%clk
0:02:32.2]} 19... N7b6 {[%clk 0:02:16.4]} 20. a4 {[%clk 0:02:14]} 20... Qd7
{[%clk 0:02:06.5]} 21. Bh3 {[%clk 0:01:48.3]} 21... f5 {[%clk 0:01:52.5]} 22.
Rd6 {[%clk 0:01:38]} 22... Qe7 {[%clk 0:01:44.3]} 23. Re1 {[%clk 0:01:33.3]}
23... Qc7 {[%clk 0:01:45.2]} 24. a5 {[%clk 0:01:32.3]} 24... Rf7 {[%clk
0:01:40.4]} 25. Ng5 {[%clk 0:01:08.1]} 25... Qxd6 {[%clk 0:01:21.3]} 26. Nxf7
{[%clk 0:01:07.7]} 26... Qg6 {[%clk 0:01:03.8]} 27. Ne5 {[%clk 0:01:03.2]} 27...
Qh5 {[%clk 0:01:04.5]} 28. Bg2 {[%clk 0:01:01.3]} 28... Rd8 {[%clk 0:00:12.9]}
29. axb6 {[%clk 0:00:55]} 29... axb6 {[%clk 0:00:14.8]} 30. Nc6 {[%clk
0:00:35.8]} 30... Rd7 {[%clk 0:00:13.7]} 31. Ne7+ {[%clk 0:00:17.2]} 31... Rxe7
{[%clk 0:00:08.1]} 32. Rxe7 {[%clk 0:00:15.9]} 32... Qd1+ {[%clk 0:00:09.4]} 33.
Qxd1 {[%clk 0:00:15.6]} 33... Nxe7 {[%clk 0:00:09.7]} 34. Bxb7 {[%clk
0:00:14.8]} 1-0

[Event "*** Titled Tuesday Blitz AM"]
[Site "Chess.com"]
[Date "2020.01.07"]
[Round "3"]
[White "NZT72"]
[Black "zurzan"]
[Result "1-0"]
[WhiteElo "2524"]
[BlackElo "1964"]
[TimeControl "180+2"]
[EndTime "9:37:17 PST"]
[Termination "NZT72 won by resignation"]

1. c4 {[%clk 0:03:01.9]} 1... f5 {[%clk 0:02:59.9]} 2. g3 {[%clk 0:03:02.5]}
2... Nf6 {[%clk 0:03:01.8]} 3. Bg2 {[%clk 0:03:03.5]} 3... g6 {[%clk 0:03:03.7]}
4. Nc3 {[%clk 0:03:04]} 4... Bg7 {[%clk 0:03:05.6]} 5. d3 {[%clk 0:03:04.9]}
5... O-O {[%clk 0:03:07.5]} 6. e4 {[%clk 0:03:06.4]} 6... d6 {[%clk 0:03:09.3]}
7. Nge2 {[%clk 0:03:07.6]} 7... e5 {[%clk 0:03:09.2]} 8. O-O {[%clk 0:03:06.9]}
8... c6 {[%clk 0:03:06.3]} 9. h3 {[%clk 0:02:52.9]} 9... Nh5 {[%clk 0:02:51.8]}
10. f4 {[%clk 0:01:49.7]} 10... exf4 {[%clk 0:02:42.2]} 11. gxf4 {[%clk
0:01:46.3]} 11... fxe4 {[%clk 0:02:29.7]} 12. dxe4 {[%clk 0:01:44.5]} 12... Qh4
{[%clk 0:02:19.3]} 13. Qe1 {[%clk 0:01:23.6]} 13... Qxe1 {[%clk 0:02:15.4]} 14.
Rxe1 {[%clk 0:01:24.9]} 14... Be6 {[%clk 0:02:12.7]} 15. b3 {[%clk 0:00:54.4]}
15... Na6 {[%clk 0:01:39.3]} 16. Rf1 {[%clk 0:00:45.4]} 16... Nb4 {[%clk
0:01:21.7]} 17. Rb1 {[%clk 0:00:31]} 17... Rad8 {[%clk 0:00:53.2]} 18. Be3
{[%clk 0:00:24.2]} 18... Nc2 {[%clk 0:00:43.2]} 19. Bxa7 {[%clk 0:00:14.6]}
19... Ra8 {[%clk 0:00:43.7]} 20. Bf2 {[%clk 0:00:13.2]} 20... Nb4 {[%clk
0:00:37.8]} 21. a4 {[%clk 0:00:09.3]} 21... Nd3 {[%clk 0:00:37.6]} 22. Be3
{[%clk 0:00:09.9]} 22... Ng3 {[%clk 0:00:27.8]} 23. Nxg3 {[%clk 0:00:07.6]}
23... Bxc3 {[%clk 0:00:28.6]} 24. Rbd1 {[%clk 0:00:08.1]} 24... Nc5 {[%clk
0:00:25.6]} 25. Rxd6 {[%clk 0:00:08.8]} 25... Bf7 {[%clk 0:00:21.6]} 26. Bxc5
{[%clk 0:00:09.3]} 26... Rad8 {[%clk 0:00:17.5]} 27. e5 {[%clk 0:00:09.5]} 27...
Rxd6 {[%clk 0:00:17.3]} 28. Bxd6 {[%clk 0:00:11]} 28... Re8 {[%clk 0:00:18.5]}
29. Ne4 {[%clk 0:00:12.2]} 29... Bd4+ {[%clk 0:00:18]} 30. Kh1 {[%clk
0:00:13.6]} 30... Ra8 {[%clk 0:00:10.3]} 31. Rd1 {[%clk 0:00:13.8]} 31... Be3
{[%clk 0:00:08.4]} 32. Rf1 {[%clk 0:00:12.3]} 32... b5 {[%clk 0:00:06.5]} 33.
cxb5 {[%clk 0:00:13.2]} 33... cxb5 {[%clk 0:00:08.4]} 34. Nf6+ {[%clk
0:00:14.5]} 34... Kg7 {[%clk 0:00:08.7]} 35. Bxa8 {[%clk 0:00:15.9]} 1-0

[Event "*** Titled Tuesday Blitz AM"]
[Site "Chess.com"]
[Date "2020.01.07"]
[Round "3"]
[White "rasmussvane"]
[Black "NewBornNow"]
[Result "1-0"]
[WhiteElo "2860"]
[BlackElo "2696"]
[TimeControl "180+2"]
[EndTime "9:37:22 PST"]
[Termination "rasmussvane won by resignation"]

1. Nf3 {[%clk 0:03:01.9]} 1... d6 {[%clk 0:02:59.7]} 2. d4 {[%clk 0:03:02.7]}
2... Nf6 {[%clk 0:02:59.8]} 3. g3 {[%clk 0:03:03.2]} 3... g6 {[%clk 0:03:00.3]}
4. Bg2 {[%clk 0:03:04.4]} 4... Bg7 {[%clk 0:03:01.3]} 5. O-O {[%clk 0:03:05.7]}
5... O-O {[%clk 0:03:02.4]} 6. a4 {[%clk 0:03:04.7]} 6... a5 {[%clk 0:03:00.7]}
7. Re1 {[%clk 0:03:05.1]} 7... Nbd7 {[%clk 0:03:00.4]} 8. e4 {[%clk 0:03:06.1]}
8... e5 {[%clk 0:03:00.9]} 9. Nc3 {[%clk 0:03:07.1]} 9... c6 {[%clk 0:02:58.5]}
10. b3 {[%clk 0:03:07.9]} 10... exd4 {[%clk 0:02:53.4]} 11. Nxd4 {[%clk
0:03:08.5]} 11... Nc5 {[%clk 0:02:53.5]} 12. Bf4 {[%clk 0:03:00.8]} 12... Re8
{[%clk 0:02:52.2]} 13. Qd2 {[%clk 0:03:01.5]} 13... Ng4 {[%clk 0:02:41.9]} 14.
Rad1 {[%clk 0:02:56.3]} 14... Ne5 {[%clk 0:02:37.1]} 15. f3 {[%clk 0:02:38.6]}
15... Bd7 {[%clk 0:02:28.1]} 16. Nde2 {[%clk 0:02:35.7]} 16... Qb6 {[%clk
0:02:20.9]} 17. Be3 {[%clk 0:02:33.2]} 17... Rad8 {[%clk 0:02:18.4]} 18. Kh1
{[%clk 0:02:28.3]} 18... Bc8 {[%clk 0:02:12.2]} 19. Bd4 {[%clk 0:02:25.3]} 19...
Qc7 {[%clk 0:02:04.3]} 20. h3 {[%clk 0:02:21.7]} 20... Bxh3 {[%clk 0:01:35.5]}
21. Bxh3 {[%clk 0:02:23.6]} 21... Nxf3 {[%clk 0:01:35.5]} 22. Qf4 {[%clk
0:02:18.4]} 22... Nxe1 {[%clk 0:01:33.1]} 23. Rxe1 {[%clk 0:02:17.9]} 23... Ne6
{[%clk 0:01:33.9]} 24. Bxe6 {[%clk 0:02:18]} 24... Rxe6 {[%clk 0:01:34.5]} 25.
Bxg7 {[%clk 0:02:15.4]} 25... Kxg7 {[%clk 0:01:35.2]} 26. Nd4 {[%clk 0:02:17.3]}
26... Rf6 {[%clk 0:01:31.6]} 27. Qe3 {[%clk 0:02:11.4]} 27... Re8 {[%clk
0:01:29.9]} 28. Kg2 {[%clk 0:02:10.9]} 28... d5 {[%clk 0:01:28.6]} 29. e5 {[%clk
0:02:10.7]} 29... Rfe6 {[%clk 0:01:17.9]} 30. Nxe6+ {[%clk 0:02:10.1]} 30...
Rxe6 {[%clk 0:01:18.9]} 31. Qd4 {[%clk 0:01:58.9]} 31... Kg8 {[%clk 0:01:18.2]}
32. Re3 {[%clk 0:01:56.7]} 32... Qe7 {[%clk 0:01:13.9]} 33. Ne2 {[%clk
0:01:52.9]} 33... Qg5 {[%clk 0:01:07.8]} 34. Qf4 {[%clk 0:01:51.1]} 34... Qd8
{[%clk 0:01:05.1]} 35. Nd4 {[%clk 0:01:51.8]} 35... Re8 {[%clk 0:01:04.9]} 36.
e6 {[%clk 0:01:51.7]} 36... f5 {[%clk 0:01:00.6]} 37. Qe5 {[%clk 0:01:38.3]}
37... Qe7 {[%clk 0:00:58.8]} 38. c3 {[%clk 0:01:36.7]} 38... Qg7 {[%clk
0:00:57.5]} 39. Qd6 {[%clk 0:01:27.8]} 39... Qe7 {[%clk 0:00:55.9]} 40. Qe5
{[%clk 0:01:28.6]} 40... Qg7 {[%clk 0:00:56.4]} 41. Qf4 {[%clk 0:01:23.4]} 41...
Qf6 {[%clk 0:00:54]} 42. b4 {[%clk 0:01:20.1]} 42... axb4 {[%clk 0:00:53.4]} 43.
cxb4 {[%clk 0:01:22]} 43... Kg7 {[%clk 0:00:46.7]} 44. a5 {[%clk 0:01:21.8]}
44... Re7 {[%clk 0:00:45.2]} 45. Re2 {[%clk 0:01:11.7]} 45... Kg8 {[%clk
0:00:42.8]} 46. a6 {[%clk 0:00:57.6]} 46... bxa6 {[%clk 0:00:41.5]} 47. Qe5
{[%clk 0:00:51.4]} 47... Qxe5 {[%clk 0:00:35.5]} 48. Rxe5 {[%clk 0:00:53.3]}
48... Kg7 {[%clk 0:00:35.5]} 49. Nxc6 {[%clk 0:00:54.4]} 49... Re8 {[%clk
0:00:35.8]} 50. e7 {[%clk 0:00:55.5]} 50... Kf7 {[%clk 0:00:33.2]} 51. Rxd5
{[%clk 0:00:56.2]} 51... Rc8 {[%clk 0:00:33.3]} 52. Rd8 {[%clk 0:00:56.6]} 1-0

[Event "*** Titled Tuesday Blitz AM"]
[Site "Chess.com"]
[Date "2020.01.07"]
[Round "3"]
[White "Nathan_Filgueiras"]
[Black "GelmanAlexander"]
[Result "0-1"]
[WhiteElo "2312"]
[BlackElo "2490"]
[TimeControl "180+2"]
[EndTime "9:37:27 PST"]
[Termination "GelmanAlexander won by resignation"]

1. e4 {[%clk 0:03:01.9]} 1... c5 {[%clk 0:02:55.4]} 2. Nf3 {[%clk 0:03:02.5]}
2... e6 {[%clk 0:02:55.8]} 3. d4 {[%clk 0:03:03.5]} 3... cxd4 {[%clk 0:02:57]}
4. Nxd4 {[%clk 0:03:05.4]} 4... d6 {[%clk 0:02:58]} 5. c4 {[%clk 0:03:02.2]}
5... Nf6 {[%clk 0:02:56.1]} 6. Nc3 {[%clk 0:03:02.6]} 6... b6 {[%clk 0:02:57.1]}
7. Bd3 {[%clk 0:02:55.8]} 7... Bb7 {[%clk 0:02:57.7]} 8. O-O {[%clk 0:02:55]}
8... Nbd7 {[%clk 0:02:56.7]} 9. Qe2 {[%clk 0:02:54.7]} 9... a6 {[%clk
0:02:45.2]} 10. f4 {[%clk 0:02:50.4]} 10... Qc7 {[%clk 0:02:44.1]} 11. b4 {[%clk
0:02:33.9]} 11... Be7 {[%clk 0:02:40.8]} 12. Be3 {[%clk 0:02:33.7]} 12... Rc8
{[%clk 0:02:32.9]} 13. Rac1 {[%clk 0:02:34.9]} 13... O-O {[%clk 0:02:28]} 14. f5
{[%clk 0:02:34.3]} 14... e5 {[%clk 0:02:16.3]} 15. Nd5 {[%clk 0:02:34.9]} 15...
Qd8 {[%clk 0:02:15.2]} 16. Nb3 {[%clk 0:02:15.8]} 16... h6 {[%clk 0:02:15.4]}
17. Rf3 {[%clk 0:02:00.2]} 17... Nxd5 {[%clk 0:02:11.9]} 18. cxd5 {[%clk
0:01:52.5]} 18... Rxc1+ {[%clk 0:02:13.8]} 19. Bxc1 {[%clk 0:01:52.7]} 19... Bg5
{[%clk 0:02:05]} 20. Bxg5 {[%clk 0:01:42.1]} 20... Qxg5 {[%clk 0:02:05.5]} 21.
Rg3 {[%clk 0:01:41.8]} 21... Qh4 {[%clk 0:01:56.7]} 22. Rg4 {[%clk 0:01:40.5]}
22... Qd8 {[%clk 0:01:46.8]} 23. Qd2 {[%clk 0:01:39.5]} 23... Nf6 {[%clk
0:01:41.5]} 24. Rg3 {[%clk 0:01:36]} 24... Kh8 {[%clk 0:01:26]} 25. Rf3 {[%clk
0:01:33.3]} 25... a5 {[%clk 0:01:21.2]} 26. bxa5 {[%clk 0:01:29.9]} 26... bxa5
{[%clk 0:01:22.4]} 27. Nxa5 {[%clk 0:01:23.9]} 27... Qb6+ {[%clk 0:01:22.1]} 28.
Kh1 {[%clk 0:01:17.5]} 28... Ra8 {[%clk 0:01:04.6]} 29. Nxb7 {[%clk 0:01:13.5]}
29... Qxb7 {[%clk 0:01:06.5]} 30. Qe2 {[%clk 0:01:00.6]} 30... Qb6 {[%clk
0:00:44.1]} 31. g3 {[%clk 0:00:52.3]} 31... Qd4 {[%clk 0:00:38.8]} 32. Qc2
{[%clk 0:00:33]} 32... Ra3 {[%clk 0:00:24.7]} 33. Kg2 {[%clk 0:00:27.7]} 33...
Ng4 {[%clk 0:00:21.3]} 34. Qe2 {[%clk 0:00:25.2]} 34... Rc3 {[%clk 0:00:14.9]}
35. h3 {[%clk 0:00:23.9]} 35... Rc1 {[%clk 0:00:14.2]} 36. hxg4 {[%clk
0:00:03.8]} 36... Qg1+ {[%clk 0:00:15]} 37. Kh3 {[%clk 0:00:05.1]} 37... Qh1+
{[%clk 0:00:16.7]} 38. Qh2 {[%clk 0:00:05.9]} 38... Qxf3 {[%clk 0:00:18.3]} 0-1